[Event "Titled Tuesday Blitz February 14 Early 2023"]
[White "Forgacs, Attila Jr."]
[Black "I_KID_you_not"]
[WhiteFideId "773654"]
[WhiteElo "2264"]
[BlackElo "2323"]
[Result "1/2-1/2"]
[Round "10"]
[TimeControl "180+2"]
[Date "2023.02.14"]
[WhiteClock "0:00:18"]
[BlackClock "0:00:27"]

1. e4 {[%clk 0:03:00]}  e6 {[%clk 0:02:59]} 2. d4 {[%clk 0:02:59]}  d5 {[%clk 0:03:00]} 3. Nc3 {[%clk 0:02:58]}  Nf6 {[%clk 0:02:59]} 4. e5 {[%clk 0:02:58]}  Ng8 {[%clk 0:02:59]} 5. f4 {[%clk 0:02:57]}  Nh6 {[%clk 0:02:59]} 6. Nf3 {[%clk 0:02:57]}  c5 {[%clk 0:02:58]} 7. Be3 {[%clk 0:02:56]}  Nf5 {[%clk 0:02:58]} 8. Bf2 {[%clk 0:02:56]}  cxd4 {[%clk 0:02:58]} 9. Nxd4 {[%clk 0:02:56]}  Nxd4 {[%clk 0:02:58]} 10. Bxd4 {[%clk 0:02:56]}  Nc6 {[%clk 0:02:59]} 11. Bf2 {[%clk 0:02:56]}  Bb4 {[%clk 0:02:54]} 12. a3 {[%clk 0:02:55]}  Bxc3+ {[%clk 0:02:53]} 13. bxc3 {[%clk 0:02:56]}  Qa5 {[%clk 0:02:53]} 14. Qd2 {[%clk 0:02:55]}  Bd7 {[%clk 0:02:43]} 15. Bd3 {[%clk 0:02:54]}  O-O-O {[%clk 0:02:33]} 16. O-O {[%clk 0:02:52]}  d4 {[%clk 0:02:32]} 17. Rfb1 {[%clk 0:02:24]}  Qxc3 {[%clk 0:02:25]} 18. Qxc3 {[%clk 0:02:25]}  dxc3 {[%clk 0:02:25]} 19. Rb3 {[%clk 0:02:25]}  Kb8 {[%clk 0:02:18]} 20. Rab1 {[%clk 0:02:21]}  Na5 {[%clk 0:02:15]} 21. Rxc3 {[%clk 0:02:17]}  Rc8 {[%clk 0:02:14]} 22. Rxc8+ {[%clk 0:02:13]}  Rxc8 {[%clk 0:02:13]} 23. Rb4 {[%clk 0:02:08]}  h6 {[%clk 0:01:53]} 24. Kf1 {[%clk 0:02:08]}  Rc3 {[%clk 0:01:52]} 25. a4 {[%clk 0:01:52]}  Nc6 {[%clk 0:01:39]} 26. Rb3 {[%clk 0:01:42]}  Rxb3 {[%clk 0:01:36]} 27. cxb3 {[%clk 0:01:43]}  Na5 {[%clk 0:01:26]} 28. Bc2 {[%clk 0:01:40]}  b5 {[%clk 0:01:25]} 29. Bc5 {[%clk 0:01:31]}  g6 {[%clk 0:01:16]} 30. g4 {[%clk 0:01:26]}  bxa4 {[%clk 0:01:12]} 31. bxa4 {[%clk 0:01:27]}  Nc4 {[%clk 0:01:12]} 32. Ke2 {[%clk 0:01:26]}  Nb6 {[%clk 0:01:09]} 33. Bxb6 {[%clk 0:01:21]}  axb6 {[%clk 0:01:09]} 34. Ke3 {[%clk 0:01:13]}  Kb7 {[%clk 0:00:57]} 35. Bb3 {[%clk 0:00:55]}  Ka6 {[%clk 0:00:41]} 36. f5 {[%clk 0:00:55]}  gxf5 {[%clk 0:00:41]} 37. gxf5 {[%clk 0:00:55]}  Ka5 {[%clk 0:00:41]} 38. fxe6 {[%clk 0:00:49]}  Bxe6 {[%clk 0:00:41]} 39. Bc2 {[%clk 0:00:44]}  Kb4 {[%clk 0:00:39]} 40. Kd4 {[%clk 0:00:41]}  Bd7 {[%clk 0:00:37]} 41. Kd5 {[%clk 0:00:34]}  Bxa4 {[%clk 0:00:36]} 42. Bf5 {[%clk 0:00:27]}  Bb3+ {[%clk 0:00:33]} 43. Kd6 {[%clk 0:00:27]}  Kc3 {[%clk 0:00:34]} 44. Bd7 {[%clk 0:00:24]}  Bc4 {[%clk 0:00:30]} 45. Ke7 {[%clk 0:00:22]}  Kd4 {[%clk 0:00:28]} 46. Kf6 {[%clk 0:00:19]}  b5 {[%clk 0:00:27]} 47. Bxb5 {[%clk 0:00:17]}  Bxb5 {[%clk 0:00:27]} 48. Kxf7 {[%clk 0:00:18]}  Kxe5 {[%clk 0:00:27]} 49. Kg6 {[%clk 0:00:18]} 1/2-1/2


[Site "https://www.chess.com"]

[Event "Titled Tuesday Blitz February 14 Early 2023"]
[White "Willathgamuwa, Kevin"]
[Black "Sarkar, Justin"]
[WhiteFideId "3214168"]
[BlackFideId "2010011"]
[WhiteElo "2062"]
[BlackElo "2309"]
[Result "1-0"]
[Round "10"]
[TimeControl "180+2"]
[Date "2023.02.14"]
[WhiteClock "0:00:05"]
[BlackClock "0:00:01"]

1. e4 {[%clk 0:03:00]}  e5 {[%clk 0:02:55]} 2. Nf3 {[%clk 0:03:00]}  Nc6 {[%clk 0:02:52]} 3. d4 {[%clk 0:03:00]}  exd4 {[%clk 0:02:50]} 4. Bc4 {[%clk 0:03:01]}  Nf6 {[%clk 0:02:47]} 5. e5 {[%clk 0:03:01]}  Ng4 {[%clk 0:02:27]} 6. O-O {[%clk 0:03:00]}  d6 {[%clk 0:02:26]} 7. exd6 {[%clk 0:02:34]}  Bxd6 {[%clk 0:02:26]} 8. Re1+ {[%clk 0:02:32]}  Kf8 {[%clk 0:02:24]} 9. h3 {[%clk 0:02:29]}  Nge5 {[%clk 0:02:18]} 10. Nxe5 {[%clk 0:02:02]}  Nxe5 {[%clk 0:02:15]} 11. Bb3 {[%clk 0:01:53]}  c5 {[%clk 0:02:02]} 12. Bf4 {[%clk 0:01:48]}  Nc6 {[%clk 0:01:11]} 13. Qh5 {[%clk 0:01:26]}  Be6 {[%clk 0:00:37]} 14. Rxe6 {[%clk 0:01:04]}  fxe6 {[%clk 0:00:34]} 15. Bxe6 {[%clk 0:01:02]}  g6 {[%clk 0:00:20]} 16. Qh6+ {[%clk 0:00:59]}  Ke7 {[%clk 0:00:19]} 17. Bg5+ {[%clk 0:00:48]}  Kxe6 {[%clk 0:00:18]} 18. Bxd8 {[%clk 0:00:47]}  Raxd8 {[%clk 0:00:19]} 19. Nd2 {[%clk 0:00:45]}  Kd7 {[%clk 0:00:11]} 20. Ne4 {[%clk 0:00:39]}  Be7 {[%clk 0:00:10]} 21. Re1 {[%clk 0:00:32]}  Rdf8 {[%clk 0:00:09]} 22. Qg7 {[%clk 0:00:30]}  Kd8 {[%clk 0:00:03]} 23. f3 {[%clk 0:00:21]}  b6 {[%clk 0:00:03]} 24. c3 {[%clk 0:00:20]}  Rfg8 {[%clk 0:00:02]} 25. Qf7 {[%clk 0:00:19]}  Rf8 {[%clk 0:00:02]} 26. Qd5+ {[%clk 0:00:19]}  Kc7 {[%clk 0:00:03]} 27. cxd4 {[%clk 0:00:18]}  Rf5 {[%clk 0:00:03]} 28. Qe6 {[%clk 0:00:16]}  cxd4 {[%clk 0:00:02]} 29. Rc1 {[%clk 0:00:14]}  Bc5 {[%clk 0:00:03]} 30. b4 {[%clk 0:00:09]}  Nxb4 {[%clk 0:00:02]} 31. Nxc5 {[%clk 0:00:06]}  bxc5 {[%clk 0:00:02]} 32. a3 {[%clk 0:00:05]}  Nc6 {[%clk 0:00:02]} 33. g4 {[%clk 0:00:04]}  Re5 {[%clk 0:00:02]} 34. Qf7+ {[%clk 0:00:03]}  Re7 {[%clk 0:00:03]} 35. Qd5 {[%clk 0:00:03]}  Re5 {[%clk 0:00:03]} 36. Qf7+ {[%clk 0:00:03]}  Re7 {[%clk 0:00:03]} 37. Qf4+ {[%clk 0:00:03]}  Kb7 {[%clk 0:00:03]} 38. Qd6 {[%clk 0:00:04]}  Rd8 {[%clk 0:00:02]} 39. Rb1+ {[%clk 0:00:04]}  Ka8 {[%clk 0:00:01]} 40. Qxc6+ {[%clk 0:00:04]}  Rb7 {[%clk 0:00:01]} 41. Qxb7# {[%clk 0:00:05]} 1-0


[Site "https://www.chess.com"]

[Event "Titled Tuesday Blitz February 14 Early 2023"]
[White "SicilianPanzer"]
[Black "Colbow, Collin"]
[BlackFideId "16201132"]
[WhiteElo "2240"]
[BlackElo "2408"]
[Result "0-1"]
[Round "10"]
[TimeControl "180+2"]
[Date "2023.02.14"]
[WhiteClock "0:01:46"]
[BlackClock "0:02:03"]

1. e4 {[%clk 0:03:00]}  e5 {[%clk 0:02:57]} 2. Nf3 {[%clk 0:03:00]}  Nc6 {[%clk 0:02:58]} 3. d4 {[%clk 0:02:59]}  exd4 {[%clk 0:02:58]} 4. Nxd4 {[%clk 0:02:59]}  Nf6 {[%clk 0:02:58]} 5. Nxc6 {[%clk 0:02:58]}  bxc6 {[%clk 0:02:59]} 6. Bd3 {[%clk 0:02:58]}  d5 {[%clk 0:02:59]} 7. e5 {[%clk 0:02:58]}  Ng4 {[%clk 0:02:49]} 8. O-O {[%clk 0:02:57]}  Be6 {[%clk 0:02:30]} 9. h3 {[%clk 0:02:50]}  Nxe5 {[%clk 0:02:29]} 10. Re1 {[%clk 0:02:35]}  Nxd3 {[%clk 0:02:29]} 11. Qxd3 {[%clk 0:02:35]}  Bd6 {[%clk 0:02:24]} 12. Be3 {[%clk 0:02:15]}  O-O {[%clk 0:02:15]} 13. Nd2 {[%clk 0:02:14]}  c5 {[%clk 0:02:10]} 14. c3 {[%clk 0:02:10]}  Qf6 {[%clk 0:02:07]} 15. Nf3 {[%clk 0:02:03]}  h6 {[%clk 0:02:06]} 16. Qa6 {[%clk 0:01:46]}  Bxh3 {[%clk 0:02:03]} 0-1


[Site "https://www.chess.com"]

[Event "Titled Tuesday Blitz February 14 Early 2023"]
[White "Jarocka, Liwia"]
[Black "De Souza, Cristiano Gomes"]
[WhiteFideId "21807558"]
[BlackFideId "2151758"]
[WhiteElo "2225"]
[BlackElo "2018"]
[Result "1/2-1/2"]
[Round "10"]
[TimeControl "180+2"]
[Date "2023.02.14"]
[WhiteClock "0:00:19"]
[BlackClock "0:00:10"]

1. e4 {[%clk 0:03:00]}  c5 {[%clk 0:02:58]} 2. Nf3 {[%clk 0:03:00]}  d6 {[%clk 0:02:58]} 3. d4 {[%clk 0:03:01]}  cxd4 {[%clk 0:02:59]} 4. Nxd4 {[%clk 0:03:02]}  Nf6 {[%clk 0:02:59]} 5. Nc3 {[%clk 0:03:02]}  g6 {[%clk 0:02:59]} 6. Be3 {[%clk 0:03:01]}  Bg7 {[%clk 0:02:59]} 7. f3 {[%clk 0:03:01]}  O-O {[%clk 0:03:00]} 8. Bc4 {[%clk 0:03:01]}  Nc6 {[%clk 0:03:00]} 9. Qd2 {[%clk 0:03:01]}  Bd7 {[%clk 0:03:00]} 10. Bb3 {[%clk 0:03:01]}  Rc8 {[%clk 0:03:01]} 11. O-O-O {[%clk 0:03:01]}  Ne5 {[%clk 0:03:01]} 12. Kb1 {[%clk 0:03:00]}  Nc4 {[%clk 0:03:00]} 13. Bxc4 {[%clk 0:02:59]}  Rxc4 {[%clk 0:03:00]} 14. g4 {[%clk 0:03:00]}  a6 {[%clk 0:02:56]} 15. g5 {[%clk 0:03:00]}  Nh5 {[%clk 0:02:55]} 16. f4 {[%clk 0:02:57]}  Nxf4 {[%clk 0:02:50]} 17. Bxf4 {[%clk 0:02:45]}  Rxd4 {[%clk 0:02:47]} 18. Qe3 {[%clk 0:02:45]}  Rc4 {[%clk 0:02:40]} 19. Nd5 {[%clk 0:02:43]}  Bc6 {[%clk 0:02:34]} 20. h4 {[%clk 0:02:41]}  e6 {[%clk 0:02:33]} 21. Bxd6 {[%clk 0:02:19]}  exd5 {[%clk 0:02:27]} 22. Bxf8 {[%clk 0:02:16]}  Qxf8 {[%clk 0:02:20]} 23. exd5 {[%clk 0:02:15]}  Bd7 {[%clk 0:02:15]} 24. d6 {[%clk 0:02:02]}  Rb4 {[%clk 0:02:04]} 25. c3 {[%clk 0:01:56]}  Bf5+ {[%clk 0:02:00]} 26. Ka1 {[%clk 0:01:54]}  Re4 {[%clk 0:01:56]} 27. Qf3 {[%clk 0:01:51]}  Qd8 {[%clk 0:01:49]} 28. Rd2 {[%clk 0:01:28]}  b5 {[%clk 0:01:39]} 29. Rhd1 {[%clk 0:01:24]}  Qd7 {[%clk 0:01:28]} 30. Re2 {[%clk 0:01:14]}  Rxe2 {[%clk 0:01:24]} 31. Qxe2 {[%clk 0:01:15]}  Bf8 {[%clk 0:01:20]} 32. Qe5 {[%clk 0:01:08]}  Be6 {[%clk 0:01:10]} 33. Qf6 {[%clk 0:01:00]}  b4 {[%clk 0:01:00]} 34. cxb4 {[%clk 0:00:59]}  Qa4 {[%clk 0:00:59]} 35. b3 {[%clk 0:00:51]}  Bxb3 {[%clk 0:00:52]} 36. Rd2 {[%clk 0:00:49]}  Be6 {[%clk 0:00:34]} 37. Qxe6 {[%clk 0:00:33]}  fxe6 {[%clk 0:00:30]} 38. d7 {[%clk 0:00:33]}  Bg7+ {[%clk 0:00:27]} 39. Kb1 {[%clk 0:00:34]}  Qxb4+ {[%clk 0:00:25]} 40. Kc1 {[%clk 0:00:34]}  Qc3+ {[%clk 0:00:18]} 41. Kd1 {[%clk 0:00:34]}  Qf3+ {[%clk 0:00:16]} 42. Kc2 {[%clk 0:00:23]}  Qc6+ {[%clk 0:00:15]} 43. Kd1 {[%clk 0:00:23]}  Qa4+ {[%clk 0:00:12]} 44. Ke1 {[%clk 0:00:18]}  Qe4+ {[%clk 0:00:11]} 45. Kd1 {[%clk 0:00:19]}  Qa4+ {[%clk 0:00:10]} 46. Ke1 {[%clk 0:00:19]}  Qxh4+ {[%clk 0:00:10]} 47. Kd1 {[%clk 0:00:19]}  Qg4+ {[%clk 0:00:10]} 48. Ke1 {[%clk 0:00:19]}  Qg3+ {[%clk 0:00:09]} 49. Kd1 {[%clk 0:00:19]}  Qf3+ {[%clk 0:00:09]} 50. Ke1 {[%clk 0:00:19]}  Qe3+ {[%clk 0:00:09]} 51. Kd1 {[%clk 0:00:19]}  Qg1+ {[%clk 0:00:09]} 52. Kc2 {[%clk 0:00:18]}  Qc5+ {[%clk 0:00:09]} 53. Kd1 {[%clk 0:00:18]}  Qg1+ {[%clk 0:00:09]} 54. Kc2 {[%clk 0:00:18]}  Qc5+ {[%clk 0:00:09]} 55. Kd1 {[%clk 0:00:19]}  Qg1+ {[%clk 0:00:10]} 1/2-1/2


[Site "https://www.chess.com"]

[Event "Titled Tuesday Blitz February 14 Early 2023"]
[White "Aarav Dengla"]
[Black "Vaglio Munoz, Jaime"]
[WhiteFideId "45059756"]
[BlackFideId "6500145"]
[WhiteElo "2343"]
[BlackElo "2174"]
[Result "1-0"]
[Round "10"]
[TimeControl "180+2"]
[Date "2023.02.14"]
[WhiteClock "0:00:12"]
[BlackClock "0:00:21"]

1. e4 {[%clk 0:01:39]}  e6 {[%clk 0:02:57]} 2. d4 {[%clk 0:01:37]}  d5 {[%clk 0:02:56]} 3. exd5 {[%clk 0:01:37]}  exd5 {[%clk 0:02:55]} 4. Nf3 {[%clk 0:01:37]}  Bg4 {[%clk 0:02:55]} 5. h3 {[%clk 0:01:33]}  Bh5 {[%clk 0:02:54]} 6. Be3 {[%clk 0:01:31]}  Bd6 {[%clk 0:02:52]} 7. Nbd2 {[%clk 0:01:31]}  c6 {[%clk 0:02:52]} 8. c3 {[%clk 0:01:30]}  Ne7 {[%clk 0:02:52]} 9. Bd3 {[%clk 0:01:30]}  Bg6 {[%clk 0:02:46]} 10. Qc2 {[%clk 0:01:29]}  Nd7 {[%clk 0:02:41]} 11. O-O-O {[%clk 0:01:18]}  b5 {[%clk 0:02:40]} 12. Bxg6 {[%clk 0:00:55]}  hxg6 {[%clk 0:02:38]} 13. Rhe1 {[%clk 0:00:54]}  Kf8 {[%clk 0:02:37]} 14. Bg5 {[%clk 0:00:53]}  f6 {[%clk 0:02:30]} 15. Bh4 {[%clk 0:00:53]}  Kf7 {[%clk 0:02:29]} 16. Bg3 {[%clk 0:00:52]}  Nf8 {[%clk 0:02:28]} 17. Nb3 {[%clk 0:00:49]}  a5 {[%clk 0:02:27]} 18. Nc5 {[%clk 0:00:49]}  Bxc5 {[%clk 0:02:23]} 19. dxc5 {[%clk 0:00:50]}  Nf5 {[%clk 0:02:22]} 20. Bh2 {[%clk 0:00:46]}  Ne6 {[%clk 0:02:19]} 21. g4 {[%clk 0:00:36]}  Nh4 {[%clk 0:02:13]} 22. Nxh4 {[%clk 0:00:36]}  Rxh4 {[%clk 0:02:14]} 23. Rxe6 {[%clk 0:00:36]}  Kxe6 {[%clk 0:01:51]} 24. Qxg6 {[%clk 0:00:34]}  Kd7 {[%clk 0:01:45]} 25. Qf5+ {[%clk 0:00:23]}  Ke8 {[%clk 0:01:37]} 26. Re1+ {[%clk 0:00:20]}  Kf8 {[%clk 0:01:32]} 27. Bd6+ {[%clk 0:00:19]}  Kg8 {[%clk 0:01:32]} 28. Re7 {[%clk 0:00:18]}  Rxh3 {[%clk 0:00:58]} 29. Qg6 {[%clk 0:00:15]}  Rh7 {[%clk 0:00:57]} 30. g5 {[%clk 0:00:14]}  fxg5 {[%clk 0:00:46]} 31. Qf7+ {[%clk 0:00:13]}  Kh8 {[%clk 0:00:46]} 32. Qg6 {[%clk 0:00:09]}  Qg8 {[%clk 0:00:45]} 33. Be5 {[%clk 0:00:05]}  Rf8 {[%clk 0:00:43]} 34. Qxg5 {[%clk 0:00:05]}  Rf7 {[%clk 0:00:42]} 35. Re6 {[%clk 0:00:03]}  Rh1+ {[%clk 0:00:41]} 36. Kd2 {[%clk 0:00:02]}  Rxf2+ {[%clk 0:00:39]} 37. Ke3 {[%clk 0:00:03]}  Rf7 {[%clk 0:00:36]} 38. Rh6+ {[%clk 0:00:02]}  Rxh6 {[%clk 0:00:35]} 39. Qxh6+ {[%clk 0:00:03]}  Qh7 {[%clk 0:00:35]} 40. Qe6 {[%clk 0:00:03]}  Qh6+ {[%clk 0:00:33]} 41. Qxh6+ {[%clk 0:00:03]}  Kg8 {[%clk 0:00:33]} 42. Qxc6 {[%clk 0:00:04]}  Rf5 {[%clk 0:00:32]} 43. Qe6+ {[%clk 0:00:03]}  Rf7 {[%clk 0:00:32]} 44. Qxd5 {[%clk 0:00:04]}  g6 {[%clk 0:00:29]} 45. c6 {[%clk 0:00:04]}  Kf8 {[%clk 0:00:26]} 46. Qxf7+ {[%clk 0:00:04]}  Kxf7 {[%clk 0:00:26]} 47. c7 {[%clk 0:00:05]}  Ke6 {[%clk 0:00:26]} 48. c8=Q+ {[%clk 0:00:06]}  Kxe5 {[%clk 0:00:25]} 49. Qb8+ {[%clk 0:00:07]}  Kf6 {[%clk 0:00:25]} 50. Qxb5 {[%clk 0:00:08]}  g5 {[%clk 0:00:25]} 51. Qxa5 {[%clk 0:00:09]}  g4 {[%clk 0:00:25]} 52. Kf4 {[%clk 0:00:10]}  g3 {[%clk 0:00:23]} 53. Qb6+ {[%clk 0:00:10]}  Ke7 {[%clk 0:00:22]} 54. Kxg3 {[%clk 0:00:11]}  Kd7 {[%clk 0:00:21]} 55. Kf4 {[%clk 0:00:12]} 1-0


[Site "https://www.chess.com"]

[Event "Titled Tuesday Blitz February 14 Early 2023"]
[White "Delorme, Axel"]
[Black "Fajdetic, Hrvoje"]
[WhiteFideId "632023"]
[BlackFideId "14501945"]
[WhiteElo "2483"]
[BlackElo "2151"]
[Result "0-1"]
[Round "10"]
[TimeControl "180+2"]
[Date "2023.02.14"]
[WhiteClock "0:00:19"]
[BlackClock "0:00:06"]

1. e4 {[%clk 0:03:00]}  c5 {[%clk 0:02:52]} 2. Nf3 {[%clk 0:03:00]}  a6 {[%clk 0:02:51]} 3. c3 {[%clk 0:02:58]}  d5 {[%clk 0:02:51]} 4. exd5 {[%clk 0:02:58]}  Qxd5 {[%clk 0:02:52]} 5. d4 {[%clk 0:02:58]}  Bg4 {[%clk 0:02:51]} 6. Be2 {[%clk 0:02:57]}  e6 {[%clk 0:02:50]} 7. O-O {[%clk 0:02:56]}  Nf6 {[%clk 0:02:50]} 8. Be3 {[%clk 0:02:56]}  Nbd7 {[%clk 0:02:50]} 9. c4 {[%clk 0:02:54]}  Qd6 {[%clk 0:02:47]} 10. Nc3 {[%clk 0:02:50]}  cxd4 {[%clk 0:02:44]} 11. Qxd4 {[%clk 0:02:45]}  Qxd4 {[%clk 0:02:43]} 12. Bxd4 {[%clk 0:02:46]}  Bc5 {[%clk 0:02:41]} 13. Rad1 {[%clk 0:02:44]}  Rd8 {[%clk 0:02:31]} 14. h3 {[%clk 0:02:37]}  Bh5 {[%clk 0:02:29]} 15. Rd2 {[%clk 0:02:26]}  Bxd4 {[%clk 0:02:17]} 16. Rxd4 {[%clk 0:02:24]}  Nc5 {[%clk 0:02:11]} 17. Rfd1 {[%clk 0:02:23]}  Rxd4 {[%clk 0:02:11]} 18. Nxd4 {[%clk 0:02:21]}  Bxe2 {[%clk 0:02:09]} 19. Ndxe2 {[%clk 0:02:22]}  Ke7 {[%clk 0:02:03]} 20. f3 {[%clk 0:02:18]}  Rd8 {[%clk 0:02:00]} 21. Rxd8 {[%clk 0:02:16]}  Kxd8 {[%clk 0:01:59]} 22. Kf2 {[%clk 0:02:16]}  Nd3+ {[%clk 0:01:58]} 23. Ke3 {[%clk 0:02:16]}  Nxb2 {[%clk 0:01:59]} 24. Kd4 {[%clk 0:02:10]}  Kc7 {[%clk 0:01:54]} 25. g4 {[%clk 0:01:58]}  Kc6 {[%clk 0:01:42]} 26. h4 {[%clk 0:01:55]}  e5+ {[%clk 0:01:36]} 27. Kxe5 {[%clk 0:01:51]}  Nxc4+ {[%clk 0:01:36]} 28. Kd4 {[%clk 0:01:51]}  Nd6 {[%clk 0:01:32]} 29. h5 {[%clk 0:01:43]}  b5 {[%clk 0:01:21]} 30. Ng3 {[%clk 0:01:20]}  b4 {[%clk 0:01:14]} 31. Nd1 {[%clk 0:01:15]}  Kb5 {[%clk 0:01:08]} 32. g5 {[%clk 0:01:12]}  Nfe8 {[%clk 0:00:55]} 33. Nb2 {[%clk 0:01:03]}  a5 {[%clk 0:00:54]} 34. f4 {[%clk 0:00:59]}  a4 {[%clk 0:00:49]} 35. Ne2 {[%clk 0:00:53]}  f6 {[%clk 0:00:31]} 36. g6 {[%clk 0:00:46]}  hxg6 {[%clk 0:00:28]} 37. hxg6 {[%clk 0:00:45]}  Nf5+ {[%clk 0:00:28]} 38. Kd5 {[%clk 0:00:42]}  Ne7+ {[%clk 0:00:27]} 39. Ke6 {[%clk 0:00:41]}  Nxg6 {[%clk 0:00:28]} 40. Kf7 {[%clk 0:00:41]}  Nxf4 {[%clk 0:00:18]} 41. Nxf4 {[%clk 0:00:42]}  a3 {[%clk 0:00:18]} 42. Nd1 {[%clk 0:00:34]}  Nd6+ {[%clk 0:00:08]} 43. Kxg7 {[%clk 0:00:34]}  Ne4 {[%clk 0:00:09]} 44. Nd5 {[%clk 0:00:19]}  Kc5 {[%clk 0:00:07]} 45. Nxf6 {[%clk 0:00:17]}  Nxf6 {[%clk 0:00:06]} 46. Kxf6 {[%clk 0:00:18]}  b3 {[%clk 0:00:06]} 47. Nc3 {[%clk 0:00:16]}  Kc4 {[%clk 0:00:05]} 48. Nb1 {[%clk 0:00:14]}  bxa2 {[%clk 0:00:04]} 49. Nxa3+ {[%clk 0:00:15]}  Kb3 {[%clk 0:00:04]} 50. Nc2 {[%clk 0:00:15]}  Kxc2 {[%clk 0:00:04]} 51. Ke6 {[%clk 0:00:16]}  a1=Q {[%clk 0:00:05]} 52. Ke7 {[%clk 0:00:17]}  Qa6 {[%clk 0:00:05]} 53. Kf7 {[%clk 0:00:17]}  Kd3 {[%clk 0:00:06]} 54. Ke7 {[%clk 0:00:18]}  Ke4 {[%clk 0:00:06]} 55. Kd7 {[%clk 0:00:19]}  Kd5 {[%clk 0:00:07]} 56. Kc7 {[%clk 0:00:20]}  Qc6+ {[%clk 0:00:06]} 57. Kd8 {[%clk 0:00:19]}  Qb7 {[%clk 0:00:06]} 0-1


[Site "https://www.chess.com"]

[Event "Titled Tuesday Blitz February 14 Early 2023"]
[White "Avazkhonov, Alikhon"]
[Black "Gedgafov, Chamal"]
[WhiteFideId "14208504"]
[BlackFideId "34130621"]
[WhiteElo "1538"]
[BlackElo "2118"]
[Result "1-0"]
[Round "10"]
[TimeControl "180+2"]
[Date "2023.02.14"]
[WhiteClock "0:00:23"]
[BlackClock "0:00:38"]

1. d4 {[%clk 0:02:48]}  Nf6 {[%clk 0:02:58]} 2. c4 {[%clk 0:02:49]}  e6 {[%clk 0:02:58]} 3. Nc3 {[%clk 0:02:49]}  Bb4 {[%clk 0:02:58]} 4. e3 {[%clk 0:02:50]}  c5 {[%clk 0:02:56]} 5. Bd3 {[%clk 0:02:49]}  d6 {[%clk 0:02:52]} 6. Nf3 {[%clk 0:02:47]}  Bxc3+ {[%clk 0:02:50]} 7. bxc3 {[%clk 0:02:46]}  Nc6 {[%clk 0:02:51]} 8. O-O {[%clk 0:02:47]}  e5 {[%clk 0:02:51]} 9. e4 {[%clk 0:02:46]}  h6 {[%clk 0:02:48]} 10. h3 {[%clk 0:02:46]}  O-O {[%clk 0:02:47]} 11. Re1 {[%clk 0:02:47]}  b6 {[%clk 0:02:48]} 12. d5 {[%clk 0:02:43]}  Na5 {[%clk 0:02:47]} 13. Nd2 {[%clk 0:02:43]}  Ba6 {[%clk 0:02:47]} 14. Qe2 {[%clk 0:02:39]}  Qd7 {[%clk 0:02:43]} 15. Nf1 {[%clk 0:02:40]}  Qa4 {[%clk 0:02:41]} 16. Ne3 {[%clk 0:02:40]}  g6 {[%clk 0:02:37]} 17. Qf3 {[%clk 0:01:57]}  Kg7 {[%clk 0:02:33]} 18. Nf5+ {[%clk 0:01:15]}  gxf5 {[%clk 0:02:23]} 19. Qxf5 {[%clk 0:01:16]}  Rh8 {[%clk 0:02:06]} 20. Re3 {[%clk 0:00:56]}  Ne8 {[%clk 0:01:33]} 21. Rf3 {[%clk 0:00:36]}  f6 {[%clk 0:01:18]} 22. Rg3+ {[%clk 0:00:34]}  Kf8 {[%clk 0:01:13]} 23. Qe6 {[%clk 0:00:34]}  Bc8 {[%clk 0:01:00]} 24. Bxh6+ {[%clk 0:00:24]}  Rxh6 {[%clk 0:00:38]} 25. Rg8# {[%clk 0:00:23]} 1-0


[Site "https://www.chess.com"]

[Event "Titled Tuesday Blitz February 14 Early 2023"]
[White "Kielinkei"]
[Black "Clawitter, Craig"]
[BlackFideId "2023105"]
[WhiteElo "2360"]
[BlackElo "2050"]
[Result "1-0"]
[Round "10"]
[TimeControl "180+2"]
[Date "2023.02.14"]
[WhiteClock "0:00:29"]
[BlackClock "0:00:04"]

1. Nc3 {[%clk 0:03:00]}  d5 {[%clk 0:02:58]} 2. d4 {[%clk 0:02:59]}  e6 {[%clk 0:02:57]} 3. Bf4 {[%clk 0:02:58]}  c5 {[%clk 0:02:55]} 4. e3 {[%clk 0:02:57]}  Nf6 {[%clk 0:02:54]} 5. Nb5 {[%clk 0:02:51]}  Na6 {[%clk 0:02:51]} 6. c3 {[%clk 0:02:45]}  Be7 {[%clk 0:02:47]} 7. Nf3 {[%clk 0:02:41]}  O-O {[%clk 0:02:47]} 8. h3 {[%clk 0:02:35]}  Bd7 {[%clk 0:02:42]} 9. a4 {[%clk 0:02:32]}  cxd4 {[%clk 0:02:18]} 10. exd4 {[%clk 0:02:31]}  Ne4 {[%clk 0:02:17]} 11. Bd3 {[%clk 0:02:29]}  Bxb5 {[%clk 0:02:11]} 12. axb5 {[%clk 0:02:28]}  Nc7 {[%clk 0:02:05]} 13. Qe2 {[%clk 0:02:26]}  Bd6 {[%clk 0:01:56]} 14. Bxe4 {[%clk 0:02:17]}  Bxf4 {[%clk 0:01:55]} 15. Bd3 {[%clk 0:02:13]}  Ne8 {[%clk 0:01:32]} 16. O-O {[%clk 0:02:11]}  Qb6 {[%clk 0:01:23]} 17. b3 {[%clk 0:01:48]}  Rc8 {[%clk 0:01:22]} 18. c4 {[%clk 0:01:47]}  Bb8 {[%clk 0:01:14]} 19. Ne5 {[%clk 0:01:28]}  Nf6 {[%clk 0:00:50]} 20. c5 {[%clk 0:01:25]}  Qd8 {[%clk 0:00:37]} 21. Rfc1 {[%clk 0:01:25]}  Nd7 {[%clk 0:00:32]} 22. Nf3 {[%clk 0:01:15]}  Qf6 {[%clk 0:00:22]} 23. c6 {[%clk 0:01:11]}  bxc6 {[%clk 0:00:17]} 24. bxc6 {[%clk 0:01:12]}  Nb6 {[%clk 0:00:15]} 25. Ne5 {[%clk 0:01:09]}  Qf4 {[%clk 0:00:10]} 26. Qe3 {[%clk 0:00:59]}  Qxe3 {[%clk 0:00:09]} 27. fxe3 {[%clk 0:01:00]}  Bxe5 {[%clk 0:00:09]} 28. dxe5 {[%clk 0:01:01]}  Rc7 {[%clk 0:00:09]} 29. b4 {[%clk 0:01:00]}  Rb8 {[%clk 0:00:06]} 30. b5 {[%clk 0:00:59]}  Nc8 {[%clk 0:00:07]} 31. Ra6 {[%clk 0:00:44]}  Rb6 {[%clk 0:00:05]} 32. Rca1 {[%clk 0:00:41]}  Rxa6 {[%clk 0:00:05]} 33. Rxa6 {[%clk 0:00:42]}  Kf8 {[%clk 0:00:05]} 34. h4 {[%clk 0:00:39]}  h6 {[%clk 0:00:04]} 35. Kf2 {[%clk 0:00:38]}  Ne7 {[%clk 0:00:04]} 36. Ke2 {[%clk 0:00:36]}  Nc8 {[%clk 0:00:04]} 37. Kd2 {[%clk 0:00:36]}  Ke7 {[%clk 0:00:04]} 38. Kc3 {[%clk 0:00:35]}  Nb6 {[%clk 0:00:05]} 39. Kb4 {[%clk 0:00:34]}  Kd8 {[%clk 0:00:04]} 40. Kc5 {[%clk 0:00:33]}  Ke7 {[%clk 0:00:04]} 41. Rxb6 {[%clk 0:00:30]}  axb6+ {[%clk 0:00:05]} 42. Kxb6 {[%clk 0:00:31]}  Kd8 {[%clk 0:00:04]} 43. Kc5 {[%clk 0:00:31]}  Kc8 {[%clk 0:00:04]} 44. b6 {[%clk 0:00:32]}  Re7 {[%clk 0:00:04]} 45. Ba6+ {[%clk 0:00:29]}  Kb8 {[%clk 0:00:04]} 46. Kd6 {[%clk 0:00:29]} 1-0


[Site "https://www.chess.com"]